bitfinex/quotes_SOLUSD_20260113
["timestamp","ask_amount","ask_price","bid_price","bid_amount"]
[1768302978818,9.08965815,141.84,141.8,0.67990413]
[1768302979007,5.25094076,141.83,141.79,2.03946075]
[1768302979207,7.0501974,141.84,141.8,0.67990413]
[1768302979404,5.24950994,141.83,141.8,0.67990413]
[1768302979607,7.0501974,141.84,141.8,2.71936488]
[1768302979920,5.24951116,141.83,141.8,2.71936488]
[1768302980097,7.0501974,141.84,141.8,2.71936488]
[1768302980299,5.24821612,141.83,141.8,2.71936488]
[1768302980497,7.0501974,141.84,141.8,2.71936488]
[1768302981128,7.0501974,141.84,141.8,0.67990413]
[1768302981334,7.0501974,141.84,141.8,2.71936488]
[1768302982231,7.04970038,141.85,141.81,2.03946075]
[1768302982530,5.24575906,141.84,141.81,2.03946075]
[1768302982835,7.04970038,141.85,141.81,2.03946075]
[1768302983131,5.24584367,141.84,141.81,2.03946075]
[1768302983315,7.04970038,141.85,141.81,2.03946075]
[1768302983515,5.24455406,141.84,141.81,2.03946075]
[1768302983719,7.04970038,141.85,141.81,2.03946075]
[1768302983911,12.29482974,141.84,141.81,2.03946075]
[1768302984109,7.0502769,141.84,141.8,9.77154515]
[1768302985634,7.04970038,141.85,141.81,2.03946075]
[1768302985826,5.2451143,141.84,141.81,2.03946075]
[1768302986007,7.04970038,141.85,141.81,2.03946075]
[1768302986202,7.04970038,141.85,141.81,0.67990413]
[1768302986440,7.04970038,141.85,141.82,0.67990413]
[1768302986640,0.06,141.85,141.82,0.61990413]
[1768302987111,7.10920344,141.86,141.82,2.03946075]
[1768302987505,7.04877068,141.87,141.82,9.09042347]
[1768302987950,7.10877068,141.87,141.82,9.09042347]
[1768302988736,9.14823143,141.87,141.83,0.67990413]
[1768302991841,7.10877068,141.87,141.83,0.67990413]
[1768302997519,9.14823143,141.87,141.83,0.67990413]
[1768303001361,10.29147666,141.87,141.83,0.67990413]
[1768303001539,7.10877068,141.87,141.83,0.67990413]
[1768303001743,10.29147666,141.87,141.83,0.67990413]
[1768303005543,3.18270598,141.86,141.83,0.67990413]
[1768303007343,3.24270598,141.86,141.83,0.67990413]
[1768303008263,3.24270598,141.84,141.81,0.69692323]
[1768303009456,3.18270598,141.83,141.81,0.69692323]
[1768303010556,0.06,141.84,141.81,0.69692323]
[1768303010930,3.18270598,141.83,141.81,0.69692323]
[1768303013459,3.24270598,141.84,141.81,0.69692323]
[1768303013957,3.18270598,141.84,141.81,0.69692323]
[1768303015463,3.24270598,141.85,141.82,0.69692323]
[1768303015758,7.1096633,141.86,141.83,0.69692323]
[1768303015963,10.29236928,141.86,141.83,0.69692323]
[1768303017372,3.18270598,141.85,141.83,0.69692323]
[1768303018145,0.06,141.86,141.83,0.69692323]
[1768303018365,3.18270598,141.85,141.83,0.69692323]
[1768303021065,3.24270598,141.86,141.83,0.69692323]
[1768303022053,3.18270598,141.86,141.83,0.69692323]
[1768303023366,7.10870656,141.87,141.83,0.69692323]
[1768303023554,8.43242954,141.86,141.83,0.69692323]
[1768303023753,3.18270598,141.86,141.83,0.69692323]
[1768303025549,10.29195512,141.86,141.83,0.69692323]
[1768303026270,10.23195512,141.86,141.83,0.69692323]
[1768303027077,7.10870656,141.87,141.83,0.69692323]
[1768303027266,8.43403813,141.86,141.83,0.69692323]
[1768303027451,3.18270598,141.86,141.83,0.69692323]
[1768303028157,7.10870656,141.87,141.84,0.71053742]
[1768303028475,3.18270598,141.87,141.84,0.71053742]
[1768303030169,3.18270598,141.87,141.84,7.76070024]
[1768303030368,3.18270598,141.87,141.85,0.71053742]
[1768303031281,19.96843621,141.88,141.85,0.71053742]
[1768303031572,8.43500281,141.87,141.85,0.71053742]
[1768303031766,3.18270598,141.87,141.85,0.71053742]
[1768303033175,3.24270598,141.87,141.84,0.71053742]
[1768303033682,3.18270598,141.87,141.84,0.71053742]
[1768303035276,3.24270598,141.87,141.84,0.71053742]
[1768303036375,3.18270598,141.87,141.84,0.71053742]
[1768303036555,3.18270598,141.87,141.84,7.05012228]
[1768303036760,19.96843621,141.88,141.85,0.70481724]
[1768303037067,3.18270598,141.87,141.85,0.70481724]
[1768303037665,10.29051029,141.89,141.85,0.70481724]
[1768303037856,5.25391896,141.88,141.85,0.70481724]
[1768303038053,10.29051029,141.89,141.85,0.70481724]
[1768303038258,8.43605783,141.88,141.85,0.70481724]
[1768303038470,7.10780431,141.89,141.85,0.70481724]
[1768303038471,10.29051029,141.89,141.85,0.70481724]
[1768303038658,5.25301459,141.88,141.86,0.70481724]
[1768303038857,10.29051029,141.89,141.86,0.70481724]
[1768303039059,5.25320992,141.88,141.86,0.70481724]
[1768303039362,3.18270598,141.88,141.85,0.70481724]
[1768303041973,7.10780431,141.89,141.85,0.70481724]
[1768303042279,8.43530313,141.88,141.85,7.75447602]
[1768303042473,3.18270598,141.88,141.85,7.75447602]
[1768303044065,10.29051029,141.89,141.85,7.75447602]
[1768303044259,5.25395425,141.88,141.86,0.70481724]
[1768303044482,3.18270598,141.89,141.86,0.70481724]
[1768303044773,3.24270598,141.89,141.86,0.70481724]
[1768303044980,3.18270598,141.89,141.86,0.70481724]
[1768303047082,3.24270598,141.89,141.86,0.70481724]
[1768303048672,19.96727929,141.9,141.86,0.70481724]
[1768303048862,8.43579608,141.89,141.86,0.70481724]
[1768303049180,3.18270598,141.89,141.86,0.70481724]
[1768303052577,10.28998527,141.9,141.86,0.70481724]
[1768303052778,8.43661237,141.89,141.86,0.70481724]
[1768303052976,3.18270598,141.89,141.86,0.70481724]
[1768303053387,10.29054087,141.89,141.86,0.70481724]
[1768303054289,10.23054087,141.89,141.86,0.70481724]
[1768303056081,7.10721634,141.9,141.86,0.70481724]
[1768303056281,8.43866279,141.89,141.86,0.70481724]
[1768303056485,3.18270598,141.89,141.86,0.70481724]
[1768303057088,5.25680107,141.88,141.86,0.70481724]
[1768303057272,3.18270598,141.89,141.86,0.70481724]
[1768303057473,5.2568557,141.88,141.86,0.70481724]
[1768303057775,3.18270598,141.89,141.86,0.70481724]
[1768303057976,5.25688172,141.88,141.86,0.70481724]
[1768303058178,3.18270598,141.89,141.86,0.70481724]
[1768303058382,5.25685318,141.88,141.86,0.70481724]
[1768303058677,3.18270598,141.89,141.86,0.70481724]
[1768303058981,5.25603452,141.88,141.86,0.70481724]
[1768303059182,3.18270598,141.89,141.86,0.70481724]
[1768303059383,5.25715583,141.88,141.86,0.70481724]
[1768303059582,3.18270598,141.89,141.86,0.70481724]
[1768303059786,5.25721057,141.88,141.86,0.70481724]
[1768303060091,10.28992232,141.9,141.86,0.70481724]
[1768303060275,5.25856031,141.89,141.86,0.70481724]
[1768303060474,5.25856031,141.88,141.86,0.70481724]
[1768303060786,10.28992232,141.9,141.86,0.70481724]
[1768303060991,5.25860777,141.89,141.86,0.70481724]
[1768303061192,5.25860777,141.88,141.86,0.70481724]
[1768303061488,10.23055961,141.89,141.86,0.70481724]
[1768303061690,5.25901616,141.88,141.86,0.70481724]
[1768303061989,10.23055961,141.89,141.86,0.70481724]
[1768303062182,5.25945544,141.88,141.86,0.70481724]
[1768303062392,10.23055961,141.89,141.86,0.70481724]
[1768303062564,5.25951337,141.88,141.86,0.70481724]
[1768303062766,10.23055961,141.89,141.86,0.70481724]
[1768303062962,5.25951337,141.88,141.86,0.70481724]
[1768303063192,10.23055961,141.89,141.86,0.70481724]
[1768303063394,5.26002911,141.88,141.86,0.70481724]
[1768303063691,9.08413593,141.89,141.86,0.70481724]
[1768303063989,5.26008373,141.88,141.86,0.70481724]
[1768303064192,9.08413593,141.89,141.86,0.70481724]
[1768303064366,5.26068715,141.88,141.86,0.70481724]
[1768303064566,9.08413593,141.89,141.86,0.70481724]
[1768303064788,5.26074746,141.88,141.86,0.70481724]
[1768303064981,0.71622261,141.86,141.81,17.62864316]
[1768303065288,2.75250491,141.86,141.81,19.66492546]
[1768303065985,2.75250491,141.86,141.82,2.0362823]
[1768303066389,0.14710868,141.85,141.81,2.0362823]
[1768303066880,0.72202931,141.88,141.84,2.0362823]
[1768303067085,5.26037227,141.87,141.86,0.6563507]
[1768303067691,0.72202931,141.9,141.87,0.6563507]
[1768303067875,0.1,141.91,141.88,2.692633]
[1768303068072,0.1,141.91,141.89,2.0362823]
[1768303068264,0.1,141.91,141.88,2.692633]
[1768303068470,0.82202931,141.91,141.88,2.692633]
[1768303069269,0.1,141.91,141.89,2.0362823]
[1768303070883,0.1,141.91,141.89,2.692633]
[1768303073196,0.1,141.91,141.89,0.6563507]
[1768303073713,0.1,141.91,141.89,2.692633]
[1768303076210,0.1,141.93,141.91,0.6563507]
[1768303076405,0.1,141.93,141.91,2.692633]
[1768303078088,0.1,141.93,141.92,2.692633]
[1768303078289,0.1,141.93,141.92,2.632633]
[1768303078691,0.1,141.95,141.92,2.0362823]
[1768303078893,0.82202931,141.95,141.92,2.0362823]
[1768303080287,0.82202931,141.95,141.92,2.692633]
[1768303080486,0.1,141.95,141.92,2.692633]
[1768303081194,0.1,141.95,141.93,0.6563507]
[1768303081400,0.1,141.95,141.93,0.5963507]
[1768303081731,0.1,141.95,141.93,2.632633]
[1768303083128,0.1,141.95,141.93,2.0362823]
[1768303083306,0.1,141.95,141.94,0.6563507]
[1768303083506,0.1,141.95,141.94,2.692633]
[1768303083914,0.1,141.95,141.94,0.6563507]
[1768303084406,0.1,141.98,141.96,0.6563507]
[1768303084710,0.1,141.98,141.96,2.692633]
[1768303085215,0.1,141.98,141.96,9.73676129]
[1768303087504,0.76043064,142.0,141.97,0.68999889]
[1768303087718,0.76043064,142.0,141.97,2.72628119]
[1768303088221,0.76043064,142.0,141.96,9.77040948]
[1768303089520,0.76043064,142.0,141.98,2.0362823]
[1768303091008,0.1,142.0,141.98,2.0362823]
[1768303091321,0.1,142.0,141.97,9.76999199]
[1768303092514,0.1,142.0,141.98,2.72628119]
[1768303092717,0.76043064,142.0,141.96,0.68999889]
[1768303092913,7.80278606,142.0,141.96,2.72628119]
[1768303093223,2.69671294,141.98,141.94,0.68999889]
[1768303094145,9.74002613,141.98,141.94,0.68999889]
[1768303094429,0.66043064,141.97,141.94,0.68999889]
[1768303094724,0.66043064,141.96,141.93,69.13554305]
[1768303094915,0.66043064,141.96,141.94,7.04512574]
[1768303095114,0.71240697,141.97,141.94,7.04512574]
[1768303095319,0.71240697,141.97,141.94,7.72279678]
[1768303101829,0.71240697,141.97,141.93,7.04551914]
[1768303102038,0.71240697,141.93,141.89,0.67767104]
[1768303102213,2.74868927,141.93,141.89,7.7251527]
[1768303102414,2.0362823,141.92,141.89,7.7251527]
[1768303102641,2.74868927,141.93,141.89,7.7251527]
[1768303103531,2.74868927,141.93,141.9,0.67767104]
[1768303104314,2.74868927,141.93,141.9,7.72485054]
[1768303104716,2.74868927,141.93,141.9,0.67767104]
[1768303104915,2.74868927,141.93,141.9,7.72486132]
[1768303108913,0.71240697,141.93,141.9,7.72486132]
[1768303109116,2.74868927,141.93,141.9,7.72486132]
[1768303115456,0.6646815,141.92,141.89,7.7226273]
[1768303115643,2.7009638,141.92,141.89,7.7226273]
[1768303115847,2.7009638,141.91,141.88,7.72296156]
[1768303116154,0.6646815,141.9,141.87,0.67491429]
[1768303117539,0.6646815,141.9,141.87,7.72352825]
[1768303119360,2.0362823,141.91,141.87,7.72352825]
[1768303119361,2.7009638,141.91,141.87,7.72352825]
[1768303119657,2.7009638,141.91,141.88,7.72299249]
[1768303119861,0.6646815,141.94,141.89,0.67491429]
[1768303120049,0.6646815,141.93,141.89,2.0362823]
[1768303120246,0.6646815,141.93,141.88,26.70488488]
[1768303120859,0.6646815,141.93,141.88,27.37979917]
[1768303121057,2.7009638,141.94,141.9,7.72213063]
[1768303122142,2.7009638,141.94,141.91,0.67491429]
[1768303122143,0.6646815,141.94,141.91,0.67491429]
[1768303122339,2.7009638,141.96,141.92,0.67491429]
[1768303122548,2.0362823,141.96,141.92,0.67491429]
[1768303123343,3.17844697,141.96,141.93,0.67491429]
[1768303124164,10.88705176,141.97,141.93,0.67491429]
[1768303124358,3.84312847,141.98,141.94,0.67491429]
[1768303125270,0.6646815,141.97,141.93,3.17844697]
[1768303125865,0.6646815,141.97,141.94,7.72014466]
[1768303126166,0.6646815,141.98,141.94,10.89859163]
[1768303131467,0.6646815,141.96,141.93,7.72046682]
[1768303131669,0.6646815,141.96,141.93,7.04555253]
[1768303131872,0.6646815,141.96,141.92,72.29941056]
[1768303133172,3.84312847,141.96,141.92,72.29941056]
[1768303134575,3.27844697,142.0,141.91,20.58153375]
[1768303134576,0.6646815,141.94,141.91,20.58153375]
[1768303134753,3.84312847,141.94,141.91,20.58153375]
[1768303134959,3.17844697,141.96,141.91,0.67491429]
[1768303134960,3.84312847,141.93,141.91,0.67491429]
[1768303137575,0.6646815,141.93,141.91,0.67491429]
[1768303137877,0.6646815,141.94,141.91,7.72141764]
[1768303138267,3.84312847,141.95,141.91,7.72141764]
[1768303139155,0.6646815,141.95,141.91,7.72141764]
[1768303139361,0.6646815,141.95,141.91,10.89986461]
[1768303139955,0.65996653,141.91,141.85,8.61197789]
[1768303140153,3.17844697,141.88,141.83,0.67491429]
[1768303140381,24.66351912,141.91,141.83,7.72533783]
[1768303140556,3.17844697,141.88,141.83,7.72533783]
[1768303140759,3.17844697,141.88,141.83,10.9037848]
[1768303140960,3.17844697,141.9,141.86,0.67491429]
[1768303141178,3.17844697,141.9,141.85,3.85336126]
[1768303141363,3.17844697,141.9,141.85,0.67491429]
[1768303141749,3.17844697,141.89,141.85,0.67491429]
[1768303142161,3.17844697,141.88,141.85,0.67491429]
[1768303143175,3.17844697,141.88,141.85,7.72453758]
[1768303144790,3.17844697,141.87,141.85,7.72453758]
[1768303144999,3.11844698,141.87,141.85,7.72453758]
[1768303145480,3.11844698,141.87,141.85,7.04962329]
[1768303145662,3.2205662,141.87,141.85,7.04962329]
[1768303145977,3.2205662,141.87,141.84,7.05007639]
[1768303146184,3.17844697,141.86,141.82,13.54540115]
[1768303146685,3.17844697,141.88,141.82,19.91112169]
[1768303146686,3.17844697,141.84,141.82,19.91112169]
[1768303146979,3.17844697,141.84,141.81,7.93698215]
[1768303147861,3.17844697,141.85,141.82,0.68540115]
[1768303149168,3.17844697,141.83,141.81,0.2]
[1768303149778,3.17844697,141.83,141.81,7.25141957]
[1768303149994,3.17844697,141.83,141.81,7.93682072]
[1768303150858,3.17844697,141.84,141.81,7.93682072]
[1768303153176,19.90871222,141.87,141.83,7.05069449]
[1768303153380,3.17844697,141.85,141.82,7.73638406]
[1768303153563,3.17844697,141.83,141.78,7.73857489]
[1768303153756,3.17844697,141.81,141.78,7.73857489]
[1768303154159,3.17844697,141.82,141.78,7.73857489]
[1768303154655,3.17844697,141.81,141.78,7.05317374]
[1768303154858,3.17844697,141.81,141.77,7.93888587]
[1768303155054,3.17844697,141.8,141.77,7.93888587]
[1768303155278,3.17844697,141.81,141.77,7.93888587]
[1768303155579,3.17844697,141.8,141.77,0.88540115]
[1768303158681,7.05115386,141.83,141.78,0.68605747]
[1768303158878,16.03844697,141.82,141.78,0.68605747]
[1768303159087,3.17844697,141.81,141.78,0.68605747]
[1768303159889,3.17844697,141.81,141.78,7.73890708]
[1768303160272,7.05088623,141.83,141.78,7.73890708]
[1768303160471,3.17844697,141.81,141.78,7.73890708]
[1768303164485,3.17844697,141.8,141.78,7.73890708]
[1768303165379,3.11844698,141.8,141.78,7.73890708]
[1768303166091,3.17844697,141.81,141.78,7.73890708]
[1768303166998,3.17844697,141.81,141.79,0.68605747]
[1768303169788,3.17844697,141.81,141.77,7.25349693]
[1768303170095,10.23016828,141.81,141.78,0.68605747]
[1768303170502,3.17844697,141.8,141.77,0.88605747]
[1768303171398,10.2307214,141.8,141.77,0.88605747]
[1768303172110,10.2307214,141.8,141.77,0.2]
[1768303172598,3.17844697,141.79,141.77,0.2]
[1768303172819,3.17844697,141.78,141.77,0.2]
[1768303173180,3.17844697,141.79,141.77,0.2]
[1768303174891,3.17844697,141.78,141.77,0.2]
[1768303176105,3.17844697,141.78,141.75,0.2]
[1768303176106,10.23162795,141.78,141.75,0.2]
[1768303176286,3.17844697,141.76,141.75,0.2]
[1768303176812,3.17844697,141.76,141.74,0.67336195]
[1768303178203,3.17844697,141.77,141.74,0.67336195]
[1768303180684,3.17844697,141.76,141.74,0.67336195]
[1768303181210,3.17844697,141.77,141.74,0.67336195]
[1768303182887,3.17844697,141.75,141.72,0.2]
[1768303183205,16.05844697,141.76,141.72,0.2]
[1768303183206,3.17844697,141.73,141.72,0.2]
[1768303183507,10.23380623,141.74,141.72,0.2]
[1768303183805,7.05487689,141.75,141.72,0.2]
[1768303183989,3.17844697,141.75,141.72,0.87336195]
[1768303184607,3.17844697,141.74,141.72,0.87336195]
[1768303184790,3.17844697,141.73,141.72,0.2]
[1768303185105,3.17844697,141.74,141.72,0.2]
[1768303185310,2.04057353,141.74,141.72,0.87336195]
[1768303185611,2.04057353,141.74,141.72,0.2]
[1768303186198,2.04057353,141.74,141.72,0.87336195]
[1768303187114,9.0954967,141.75,141.72,0.87336195]
[1768303187306,2.04057353,141.74,141.72,0.87336195]
[1768303188118,9.0954967,141.75,141.73,0.67336195]
[1768303191221,9.0954967,141.75,141.72,0.87336195]
[1768303193513,2.04057353,141.75,141.72,0.87336195]
[1768303195915,9.09538117,141.75,141.72,0.87336195]
[1768303199618,7.05417607,141.76,141.72,0.87336195]
[1768303199819,2.04057353,141.75,141.72,0.87336195]
[1768303200398,7.05417607,141.76,141.72,0.87336195]
[1768303200399,2.04057353,141.74,141.72,0.87336195]
[1768303200721,2.04057353,141.74,141.72,0.2]
[1768303200912,2.04057353,141.74,141.72,0.87336195]
[1768303202022,2.04057353,141.74,141.72,0.2]
[1768303202614,2.04057353,141.73,141.71,0.2]
[1768303202821,2.04057353,141.73,141.71,0.87336195]
[1768303203409,2.04057353,141.73,141.71,0.2]
[1768303204120,9.09597021,141.74,141.71,0.87336195]
[1768303204320,2.04057353,141.73,141.71,0.2]
[1768303204916,2.04057353,141.72,141.71,0.2]
[1768303205119,2.04057353,141.71,141.68,0.2]
[1768303205325,2.04057353,141.69,141.68,0.2]
[1768303209333,9.09790237,141.7,141.68,0.2]
[1768303210722,2.04057353,141.7,141.68,0.2]
[1768303211922,2.04057353,141.69,141.68,0.2]
[1768303212424,2.04057353,141.7,141.68,0.2]
[1768303212627,9.09782731,141.7,141.68,0.2]
[1768303216423,2.04057353,141.69,141.68,0.2]
[1768303216624,4.08114706,141.68,141.67,1e-08]
[1768303216834,4.08114706,141.68,141.65,0.67403914]
[1768303217131,2.04057353,141.66,141.65,0.67403914]
[1768303217827,2.04057353,141.66,141.63,7.26042684]
[1768303218005,2.04057353,141.66,141.63,0.2]
[1768303219530,2.04057353,141.66,141.63,7.2605663]
[1768303219733,7.15768305,141.67,141.64,0.67403914]
[1768303219919,9.19825658,141.67,141.64,0.67403914]
[1768303221543,2.1452874,141.65,141.63,0.2]
[1768303221758,2.04057353,141.64,141.63,0.2]
[1768303221923,0.10471387,141.65,141.63,0.2]
[1768303221924,2.04057353,141.65,141.63,0.2]
[1768303222231,2.04057353,141.65,141.63,0.87403914]
[1768303222620,2.7109603,141.64,141.62,0.2]
[1768303222820,2.04057353,141.63,141.62,0.2]
[1768303223422,7.06024445,141.64,141.61,0.67403914]
[1768303223611,2.04057353,141.63,141.61,0.67403914]
[1768303223806,2.1452874,141.62,141.59,0.87403914]
[1768303224036,2.04057353,141.6,141.58,0.67403914]
[1768303224237,0.10471387,141.62,141.58,0.67403914]
[1768303224437,2.04057353,141.6,141.58,0.67403914]
[1768303224609,39.63119922,141.64,141.57,0.2]
[1768303224610,2.69975941,141.59,141.57,0.2]
[1768303224816,0.65918588,141.59,141.57,0.2]
[1768303225028,2.69975941,141.59,141.57,0.2]
[1768303226225,0.65918588,141.59,141.57,0.2]
[1768303226430,2.69975941,141.59,141.57,0.2]
[1768303226621,2.04057353,141.6,141.57,7.93732248]
[1768303227232,2.04057353,141.59,141.57,7.93732248]
[1768303227436,2.04057353,141.59,141.57,0.2]
[1768303227638,2.04057353,141.58,141.57,0.2]
[1768303227934,2.01057354,141.58,141.57,0.17000001]
[1768303228545,9.17843192,141.58,141.53,13.55403914]
[1768303228721,2.04057353,141.56,141.54,0.67403914]
[1768303229330,2.04057353,141.56,141.55,0.67403914]
[1768303230337,2.04057353,141.56,141.52,15.56475975]
[1768303230631,2.04057353,141.56,141.53,7.06555006]
[1768303231542,7.74903718,141.59,141.52,35.27001748]
[1768303231837,14.92057353,141.59,141.53,2.04057353]
[1768303232334,14.92057353,141.59,141.55,0.67403914]
[1768303232639,2.72653378,141.59,141.55,0.67403914]
[1768303232833,2.04057353,141.59,141.55,0.67403914]
[1768303233634,2.04057353,141.59,141.56,0.67403914]
[1768303234240,2.04057353,141.58,141.56,0.67403914]
[1768303238247,2.70230414,141.6,141.57,0.66510031]
[1768303238632,2.04057353,141.59,141.57,0.66510031]
[1768303240233,2.04057353,141.58,141.57,0.66510031]
[1768303242757,2.04057353,141.59,141.57,0.66510031]
[1768303243473,2.04057353,141.58,141.56,7.72914081]
[1768303243638,0.66173061,141.58,141.55,0.66510031]
[1768303243842,2.04057353,141.57,141.55,0.66510031]
[1768303244142,2.70230414,141.58,141.55,0.66510031]
[1768303245362,3.19586892,141.57,141.55,0.66510031]
[1768303246037,3.85759953,141.57,141.54,7.06466006]
[1768303246360,3.19586892,141.56,141.54,7.72976037]
[1768303248464,3.85759953,141.57,141.54,7.72976037]
[1768303250367,3.19586892,141.57,141.55,0.66510031]
[1768303255577,3.85759953,141.57,141.53,7.7305208]
[1768303256053,3.19586892,141.56,141.54,0.66510031]
[1768303261693,3.19586892,141.56,141.54,7.7302366]
[1768303261975,0.66173061,141.57,141.54,7.7302366]
[1768303261976,3.85759953,141.57,141.54,7.7302366]
[1768303263075,0.66173061,141.57,141.54,7.7302366]
[1768303263377,3.85759953,141.57,141.54,7.7302366]
[1768303263974,0.66173061,141.57,141.54,7.7302366]
[1768303264175,3.85759953,141.57,141.54,7.7302366]
[1768303265477,3.85759953,141.57,141.54,0.66510031]
[1768303265669,3.19586892,141.56,141.54,0.66510031]
[1768303265871,0.66173061,141.57,141.54,0.66510031]
[1768303266059,3.19586892,141.56,141.54,0.66510031]
[1768303266781,3.85759953,141.57,141.54,0.66510031]
[1768303266959,3.85759953,141.57,141.54,7.73013228]
[1768303267883,0.66173061,141.57,141.54,7.73013228]
[1768303268959,3.85223213,141.59,141.55,0.7168339]
[1768303269370,0.65636321,141.58,141.54,0.7168339]
[1768303269887,3.19586892,141.6,141.55,0.7168339]
[1768303270087,0.65636321,141.59,141.55,0.7168339]
[1768303270390,3.85223213,141.59,141.55,0.7168339]
[1768303270887,3.85223213,141.59,141.56,0.7168339]
[1768303271789,3.85223213,141.59,141.56,7.7809392]
[1768303272186,0.65636321,141.58,141.54,7.78188248]
[1768303272391,3.19586892,141.57,141.54,7.78188248]
[1768303272795,3.19586892,141.57,141.55,0.7168339]
[1768303275694,3.19586892,141.56,141.54,7.06504858]
[1768303275874,3.19586892,141.56,141.54,7.78373183]
[1768303276588,0.70827544,141.57,141.54,7.78373183]
[1768303276882,3.90414436,141.57,141.54,7.78373183]
[1768303279700,0.70827544,141.56,141.53,7.06540125]
[1768303279890,3.19586892,141.57,141.53,7.7840845]
[1768303280116,3.19586892,141.57,141.52,14.92283769]
[1768303280117,3.19586892,141.54,141.52,14.92283769]
[1768303280270,3.13586893,141.53,141.52,14.92283769]
[1768303280474,3.13586893,141.53,141.49,7.78586488]
[1768303280475,3.19586892,141.52,141.49,7.78586488]
[1768303280799,3.19586892,141.52,141.48,7.26789912]
[1768303280975,3.19586892,141.52,141.49,7.06757635]
[1768303282401,3.19586892,141.52,141.48,7.98643874]
[1768303283593,3.19586892,141.53,141.48,28.85264975]
[1768303284205,3.19586892,141.53,141.48,25.65678083]
[1768303285805,3.19586892,141.53,141.49,0.71868325]
[1768303289298,3.19586892,141.53,141.49,7.78602517]
[1768303290206,17.65858526,141.58,141.5,0.71868325]
[1768303290508,3.19586892,141.55,141.51,0.71868325]
[1768303290710,3.19586892,141.53,141.5,0.71868325]
[1768303291591,3.19586892,141.53,141.5,7.78573046]
[1768303293320,3.19586892,141.54,141.5,7.78573046]
[1768303294218,3.19586892,141.54,141.51,0.71868325]
[1768303295015,7.06435333,141.56,141.51,7.7850566]
[1768303295309,3.19586892,141.55,141.51,7.7850566]
[1768303298120,7.06435333,141.56,141.52,0.70449668]
[1768303298297,3.19586892,141.55,141.52,0.70449668]
[1768303298609,3.19586892,141.55,141.51,7.06637335]
[1768303298790,3.19586892,141.54,141.5,7.77139119]
[1768303298987,27.92057828,141.56,141.5,0.70449668]
[1768303299220,3.19586892,141.53,141.5,0.70449668]
[1768303300222,27.92057828,141.56,141.5,7.77146277]
[1768303300223,3.19586892,141.54,141.5,7.77146277]
[1768303303022,10.26107378,141.54,141.5,7.77146277]
[1768303303818,3.19586892,141.52,141.49,7.06747053]
[1768303304200,3.19586892,141.52,141.48,0.90449668]
[1768303304924,3.19586892,141.52,141.49,0.70449668]
[1768303305425,3.19586892,141.52,141.49,7.77213254]
[1768303306019,3.19586892,141.51,141.48,0.90449668]
[1768303306220,3.19586892,141.5,141.48,0.2]
[1768303306719,3.19586892,141.49,141.48,0.2]
[1768303306920,3.19586892,141.49,141.46,0.70449668]
[1768303307105,3.19586892,141.48,141.46,0.70449668]
[1768303307305,2.04792553,141.49,141.45,8.21975774]
[1768303307814,2.04792553,141.47,141.45,8.21995466]
[1768303308022,2.04792553,141.48,141.45,8.21995466]
[1768303309519,7.06734535,141.5,141.45,8.21995466]
[1768303310026,2.04792553,141.48,141.45,8.21995466]
[1768303315538,9.1156999,141.49,141.45,8.21995466]
[1768303316433,9.11529286,141.5,141.46,0.70449668]
[1768303317324,2.04792553,141.49,141.46,0.70449668]
[1768303317645,2.04792553,141.49,141.45,7.51545798]
[1768303317840,9.11529286,141.5,141.45,10.26788019]
[1768303320515,7.06736733,141.5,141.45,10.26788019]
[1768303320716,9.11529286,141.5,141.45,10.26788019]
[1768303321240,2.04792553,141.48,141.45,1.15033408]
[1768303321415,2.04792553,141.48,141.45,8.21984517]
[1768303321618,7.06736733,141.5,141.45,8.21984517]
[1768303321819,2.04792553,141.49,141.45,8.21984517]
[1768303322253,9.11529286,141.5,141.46,0.70449668]
[1768303323554,2.04792553,141.49,141.46,0.70449668]
[1768303323768,7.86684741,141.59,141.49,0.70449668]
[1768303324052,2.04792553,141.58,141.53,2.75242221]
[1768303324226,2.04792553,141.58,141.53,0.70449668]
[1768303324822,26.76893131,141.58,141.53,2.75242221]
[1768303325346,24.72100578,141.58,141.54,2.04792553]
[1768303325640,24.72100578,141.58,141.52,7.72410201]
[1768303325834,2.04792553,141.56,141.52,0.65813725]
[1768303326246,14.94792553,141.57,141.52,2.70606278]
[1768303326425,12.9,141.57,141.53,2.70606278]
[1768303326928,7.06414241,141.56,141.53,2.70606278]
[1768303327748,7.06414241,141.56,141.53,2.04792553]
[1768303328149,7.06414241,141.56,141.5,7.7247854]
[1768303328320,9.11206794,141.56,141.52,2.04792553]
[1768303328527,7.06414241,141.56,141.52,2.04792553]
[1768303328724,26.77242397,141.56,141.52,2.04792553]
[1768303329530,26.77242397,141.56,141.51,2.04792553]
[1768303329734,2.04792553,141.55,141.51,2.04792553]
[1768303330963,26.77242397,141.56,141.51,2.04792553]
[1768303331457,2.04792553,141.54,141.5,2.70606278]
[1768303332254,2.04792553,141.52,141.48,0.65813725]